Cogmind - Beta 12 @@@ ROGUE MODE // 2023.10.03 @ 09:50:22 Player: tu10ng Result: Destroyed by as-33996 with Assembled Maul Performance ------------- Evolutions (0) 0 Regions Visited (4) 800 Robots Destroyed (21) 105 Value Destroyed (550) 550 Prototype IDs (23) 460 Alien Tech Used (0) 0 Bonus (300) 300 TOTAL SCORE: 2215 Bonus ------- Aligned with FarCom 300 Cogmind --------- Core Integrity 0/250 Matter 245/300 Energy 96/100 System Corruption 0% Temperature Cool (2) Movement Walking (120) Location -9/Mines Parts ------- > --- POWER (1) -------- (None) > --- PROPULSION (2) --- Aluminum Leg Improved Aluminum Leg > --- UTILITY (2) ------ Modified TNC > --- WEAPON (2) ------- AWS/Thermal > --- INVENTORY (5) ---- Large Storage Unit Visual Processing Unit Heavy EM Pulse Gun Heavy EM Pulse Gun Peak State ------------ > --- POWER ------------ Light Nuclear Core > --- PROPULSION ------- Improved Aluminum Leg Improved Aluminum Leg > --- UTILITY ---------- Large Storage Unit Modified TNC > --- WEAPON ----------- AWS/Thermal > --- INVENTORY -------- Ion Engine Light Nuclear Core Aluminum Leg Improved Aluminum Leg Visual Processing Unit Signal Interpreter Utility Shielding Medium Armor Plating Medium Armor Plating Heavy EM Pulse Gun Heavy EM Pulse Gun Mini Grenade Launcher Flail [Rating: 32] Favorites ----------- Power Light Nuclear Core Engine Ion Engine Power Core Light Nuclear Core Propulsion Light Treads Treads Light Treads Leg Improved Aluminum Leg Utility Large Storage Unit Storage Large Storage Unit Processor Modified TNC Protection Medium Armor Plating Weapon Heavy EM Pulse Gun Energy Gun Heavy EM Pulse Gun Ballistic Gun Assault Rifle Build | -11 -10 -10 -10 -9 ------- Run | Jun Mat Min Exi Min Slots Evolved . | . . . . . Power . | . . . . . Propulsion . | . . . . . Utility . | . . . . . Weapon . | . . . . . Parts Attached 30 | 6 17 1 4 2 Power 5 | 1 3 1 . . Engine 3 | 1 2 . . . Core 2 | . 1 1 . . Reactor . | . . . . . Propulsion 6 | 2 1 . 2 1 Treads 3 | 2 1 . . . Leg 3 | . . . 2 1 Wheel . | . . . . . Hover . | . . . . . Flight . | . . . . . Utility 8 | 1 5 . 1 1 Device . | . . . . . Storage 2 | 1 1 . . . Processor 1 | . . . 1 . Hackware . | . . . . . Protection 5 | . 4 . . 1 Artifact . | . . . . . Weapon 11 | 2 8 . 1 . Energy Gun 10 | 1 8 . 1 . Energy Cannon . | . . . . . Ballistic Gun 1 | 1 . . . . Ballistic Cannon . | . . . . . Launcher . | . . . . . Special Weapon . | . . . . . Impact Weapon . | . . . . . Slashing Weapon . | . . . . . Piercing Weapon . | . . . . . Special Melee Weapon . | . . . . . Unidentified Prototypes 3 | . . . 3 . Parts Lost 5 | . 2 . . 3 Power 1 | . . . . 1 Propulsion 2 | . 1 . . 1 Utility 1 | . . . . 1 Weapon 1 | . 1 . . . Highest Loss Streak 3 | . 2 . . 3 To Critical Strikes . | . . . . . Average Slot Usage (%) 88 | . 93 85 84 76 Engine 3 | . 7 . . . Core 9 | . 6 14 14 10 Treads 16 | . 23 14 8 . Leg 3 | . . . 10 28 Storage 13 | . 14 14 14 3 Processor 1 | . . . 5 14 Protection 11 | . 13 14 8 5 Energy Gun 25 | . 27 28 22 14 Naked Turns . | . . . . . Heaviest Build 38 | 14 38 38 38 33 Greatest Support 40 | 40 40 20 26 26 Greatest Overweight (x) 4 | 4 1 1 1 1 Average Overweight (x) . | . . 1 1 . Largest Inventory Capacity 15 | 8 15 15 15 15 Average Capacity 13 | 7 12 15 15 7 Most Carried 15 | 4 15 15 15 15 Average Carried 11 | 2 9 14 14 7 Final Capacity 15 | 8 15 15 15 5 Final Carried 15 | 4 15 15 15 4 Class Distribution -------------------- 100% | Mutant Dominant Class ---------------- Mutant | -10/Materials Mutant | -10/Mines Mutant | -10/Exiles Mutant | -9/Mines Resources | -11 -10 -10 -10 -9 ----------- Run | Jun Mat Min Exi Min Matter Collected 435 | 209 176 50 . . Remotely . | . . . . . Salvage Created 665 | . 414 88 . 163 Parts 46 | . 29 5 . 12 Haulers Intercepted . | . . . . . Recyclers Shooed . | . . . . . Parts Field Recycled . | . . . . . Retrieved Matter . | . . . . . Parts Self-Destructed . | . . . . . Prevented . | . . . . . Kills | -11 -10 -10 -10 -9 ------- Run | Jun Mat Min Exi Min Combat Hostiles Destroyed 19 | . 9 2 . 8 Guns 15 | . 5 2 . 8 AOE 3 | . 3 . . . Classes Destroyed 7 | . 5 . . 2 Worker 1 | . 1 . . . Builder 2 | . 2 . . . Watcher 2 | . 2 . . . Swarmer 6 | . 3 . . 3 Grunt 8 | . 6 2 . . Demolisher 2 | . . . . 2 Assembled 3 | . . . . 3 Best Kill Streak 9 | . 9 2 . 8 Combat Bots Only 8 | . 5 2 . 8 Max Kills in Single Turn 4 | . 4 1 . 1 Gunslinging . | . . . . . Exploded 1 | . 1 . . . Melee . | . . . . . Uniques/NPCs Destroyed . | . . . . . Combat | -11 -10 -10 -10 -9 -------- Run | Jun Mat Min Exi Min Damage Taken 1325 | . 517 29 . 779 Core 256 | . 117 . . 139 Absorbed by Shields . | . . . . . Redirected to Shielding 4 | . 4 . . . Core Remaining (%) 100 | 100 . . . . Volleys Fired 35 | . 33 2 . . Largest 2 | . 2 2 . . Hottest 90 | . 80 90 . . Shots Fired 114 | . 66 4 . 44 Gun 114 | . 66 4 . 44 Cannon . | . . . . . Launcher . | . . . . . Special . | . . . . . Kinetic . | . . . . . Thermal 44 | . . . . 44 Explosive . | . . . . . Electromagnetic 70 | . 66 4 . . Robot Hit Streak 5 | . 5 4 . 4 Robot Miss Streak 6 | . 6 . . 4 Penetration Max . | . . . . . Secondary Targets . | . . . . . Autonomous 44 | . . . . 44 Shots Hit Robots 62 | . 37 4 . 21 Core Hits 34 | . 20 3 . 11 Critical Kills . | . . . . . Critical Parts Destroyed . | . . . . . Critical Strikes . | . . . . . Melee Attacks . | . . . . . Impact . | . . . . . Slashing . | . . . . . Piercing . | . . . . . Sneak Attacks . | . . . . . Combat Hostiles . | . . . . . Follow-up Attacks . | . . . . . Damage Inflicted 1459 | . 755 63 . 641 Guns 1217 | . 513 63 . 641 Cannons . | . . . . . Explosions 242 | . 242 . . . Melee . | . . . . . Ramming . | . . . . . Kinetic . | . . . . . Thermal 883 | . 242 . . 641 Explosive . | . . . . . Electromagnetic 576 | . 513 63 . . Impact . | . . . . . Slashing . | . . . . . Piercing . | . . . . . Highest Corruption . | . . . . . Average Corruption . | . . . . . Corruption Purged . | . . . . . Corruption Blocked . | . . . . . Overload Shots . | . . . . . Overflow Damage . | . . . . . Projectiles . | . . . . . Explosions . | . . . . . Melee . | . . . . . Knockbacks . | . . . . . Impact . | . . . . . Kinetic . | . . . . . Secondary . | . . . . . Self-Inflicted Damage 68 | . 68 . . . Shots 3 | . 3 . . . Rammed . | . . . . . Targets Rammed . | . . . . . Kicked . | . . . . . Crushed . | . . . . . Highest Temperature 246 | . 246 108 . 2 Average Temperature 81 | . 84 57 . 2 Received Heat Transfer 262 | . 204 18 . 40 Effects 1 | . 1 . . . Energy Bleed 1 | . 1 . . . Siege Activations . | . . . . . Robots Corrupted 1 | . 1 . . . Combat Hostiles 1 | . 1 . . . Parts Fried 4 | . 4 . . . Impact Corruptions . | . . . . . Robots Melted . | . . . . . Combat Hostiles . | . . . . . Parts Melted . | . . . . . Heat Transferred 1064 | . 250 . . 814 Parts Sabotaged . | . . . . . Parts Stolen . | . . . . . Parts Stripped . | . . . . . Power Chain Reactions 3 | . 3 . . . Missiles Intercepted . | . . . . . Alert | -11 -10 -10 -10 -9 ------- Run | Jun Mat Min Exi Min Peak Influence 205 | . 205 65 . 122 Initial . | . . . . . Average 45 | . 49 41 . 59 Maximum Alert Level 1 | . 1 . . . Low Security (%) 96 | 100 95 100 . 100 Level 1 3 | . 4 . . . Level 2 . | . . . . . Level 3 . | . . . . . Level 4 . | . . . . . Level 5 . | . . . . . High Security . | . . . . . Max Security . | . . . . . Squads Dispatched 1 | . 1 . . . Investigation 1 | . 1 . . . Extermination . | . . . . . Reinforcement . | . . . . . Assault . | . . . . . Garrison . | . . . . . Intercept . | . . . . . Searches Triggered . | . . . . . Construction Impeded . | . . . . . Haulers Reinforced . | . . . . . Active Scanning Responses . | . . . . . Cargo Convoy Interrupts . | . . . . . Stealth | -11 -10 -10 -10 -9 --------- Run | Jun Mat Min Exi Min Distress Signals 1 | . 1 . . . Communications Jammed . | . . . . . Distress Signals . | . . . . . Times Spotted 31 | . 16 1 . 14 Peak Tracking Total 21 | . 5 1 . 21 Tactical Retreats 2 | . . . . 2 Traps | -11 -10 -10 -10 -9 ------- Run | Jun Mat Min Exi Min Traps Triggered 2 | . 2 . . . Indirectly 1 | . 1 . . . Trap Hack Attempts . | . . . . . Triggered . | . . . . . Disarmed . | . . . . . Reprogrammed . | . . . . . Reused . | . . . . . Traps Extracted . | . . . . . Installed . | . . . . . Triggered . | . . . . . Machines | -11 -10 -10 -10 -9 ---------- Run | Jun Mat Min Exi Min Machines Disabled 3 | . 3 . . . Max in Single Turn 1 | . 1 . . . Machines Repaired . | . . . . . Machines Sabotaged . | . . . . . Overloaded Fab Kills . | . . . . . Hacking | -11 -10 -10 -10 -9 --------- Run | Jun Mat Min Exi Min Machines Accessed 8 | . 7 . 1 . Terminals 4 | . 4 . . . Fabricators . | . . . . . Repair Stations 1 | . 1 . . . Recycling Units 2 | . 2 . . . Scanalyzers . | . . . . . Garrison Access . | . . . . . Total Hacks 11 | . 10 . 1 . Successful 7 | . 6 . 1 . Failed 4 | . 4 . . . Catastrophic 1 | . 1 . . . Database Lockouts . | . . . . . Manual 6 | . . . 6 . Terminals 7 | . 7 . . . Fabricators . | . . . . . Repair Stations 1 | . 1 . . . Recycling Units 2 | . 2 . . . Scanalyzers . | . . . . . Garrison Access . | . . . . . Terminal Hacks 5 | . 4 . 1 . Record 1 | . 1 . . . Locate Traps 1 | . 1 . . . Recall Investigation 1 | . 1 . . . Registered Components 1 | . 1 . . . EX-Prototype ID Bank 1 | . . . 1 . Fabricator Hacks . | . . . . . Repair Station Hacks 1 | . 1 . . . Refit 1 | . 1 . . . Recycling Unit Hacks 1 | . 1 . . . Retrieve Components 1 | . 1 . . . Scanalyzer . | . . . . . Garrison Access Hacks . | . . . . . Unauthorized Hacks . | . . . . . Terminals . | . . . . . Fabricators . | . . . . . Repair Stations . | . . . . . Recycling Units . | . . . . . Scanalyzers . | . . . . . Garrison Access . | . . . . . Data Cores Recovered . | . . . . . Used . | . . . . . Hacking Detections 3 | . 3 . . . Full Trace Events . | . . . . . Feedback Events . | . . . . . Feedback Blocked . | . . . . . Robot Schematics Acquired . | . . . . . Robots Built . | . . . . . Authchips . | . . . . . Time . | . . . . . Total Robot Build Rating . | . . . . . Part Schematics Acquired . | . . . . . Parts Built . | . . . . . Authchips . | . . . . . Time . | . . . . . Total Part Build Rating . | . . . . . Parts Repaired . | . . . . . Time . | . . . . . Parts Recycled . | . . . . . Recycled Matter . | . . . . . Retrieved Matter . | . . . . . Retrieved Components 4 | . 4 . . . Parts Scanalyzed . | . . . . . Part Schematics Acquired . | . . . . . Parts Damaged . | . . . . . Bothacking | -11 -10 -10 -10 -9 ------------ Run | Jun Mat Min Exi Min Used RIF Installer . | . . . . . Robots Hacked . | . . . . . Non-combat . | . . . . . Combat . | . . . . . Robot Hacks Applied . | . . . . . Relay Couplers Released . | . . . . . Fabnet Peak Effective % . | . . . . . Robots Rewired . | . . . . . Allies Hacked . | . . . . . Hacks Repelled . | . . . . . Allies | -11 -10 -10 -10 -9 -------- Run | Jun Mat Min Exi Min Total Allies 2 | . . 2 . . Largest Group 2 | . . 2 2 . Highest-Rated Group 45 | . . 45 45 . Highest-Rated Ally 31 | . . 31 31 . Total Orders . | . . . . . Ally Attacks . | . . . . . Total Damage . | . . . . . Kills . | . . . . . Allies Corrupted . | . . . . . Allies Melted . | . . . . . Intel | -11 -10 -10 -10 -9 ------- Run | Jun Mat Min Exi Min Robot Analysis Total . | . . . . . Derelict Logs Recovered 2 | . . 2 . . Drone Launches . | . . . . . Drone Recoveries . | . . . . . Exploration | -11 -10 -10 -10 -9 ------------- Run | Jun Mat Min Exi Min Turns Passed 2781 | 62 1361 617 662 79 Spaces Moved 1247 | 32 610 249 298 58 Core 14 | 14 . . . . Treads 1050 | 18 610 249 173 . Legs 183 | . . . 125 58 Wheels . | . . . . . Hover . | . . . . . Flight . | . . . . . Fastest Speed 50 | 50 160 240 190 120 Average Speed 200 | 155 184 240 219 133 Slowest Speed 250 | 250 240 240 240 190 Overloaded Moves . | . . . . . Propulsion Burnouts . | . . . . . Robots Hopped . | . . . . . Cave-ins Triggered . | . . . . . Time Travels 1 | . . . 1 . Exploration Rate (%) 45 | 4 90 51 62 21 Regions Visited 4 Branch Regions 3 Pre-discovered Areas 2 | . . 2 . . Known Exits Taken . | . . . . . Unknown Exits Taken 4 | 1 1 1 1 . Scrap Searched . | . . . . . Spaces Dug . | . . . . . Terrain Destroyed 25 | . 4 . . 21 Melee . | . . . . . Projectile 21 | . . . . 21 AOE 4 | . 4 . . . Terrain Rammed . | . . . . . Walls Destroyed . | . . . . . Machines Disabled . | . . . . . Actions | -11 -10 -10 -10 -9 --------- Run | Jun Mat Min Exi Min Total 1462 | 41 785 266 310 60 Wait 100 | . 88 12 . . Move 1243 | 31 609 248 297 58 Hop . | . . . . . Pick Up 25 | 4 17 1 3 . Fast Attach 19 | 6 11 . 2 . Attach 5 | . 2 . 2 1 Detach 6 | . 5 . 1 . Swap 6 | . 4 1 . 1 Drop 23 | . 16 2 5 . Fire 35 | . 33 2 . . Melee . | . . . . . Ram . | . . . . . Kick . | . . . . . Crush . | . . . . . Escape Stasis . | . . . . . Rewire . | . . . . . Trap . | . . . . . Miscellaneous . | . . . . . Route ------- -11/Junkyard -10/Materials (discovered 4 exits: [*Mat x3] / [*Min]) -10/Mines -10/Exiles (discovered 2 exits: [*Min x2]) -9/Mines History --------- Turn | Location | Event 23 | -11/Junkyard | Discovered new exit (range 16) 63 | -11/Junkyard | Entered Materials 305 | -10/Materials | Build established: Mutant 305 | -10/Materials | Discovered new exit (range 10) 550 | -10/Materials | Discovered new exit (range 15) 678 | -10/Materials | Discovered new exit (range 15) 1359 | -10/Materials | Discovered new exit (range 7) 1424 | -10/Materials | Entered Mines 1558 | -10/Mines | Learned location of Zion (-7) 1654 | -10/Mines | Learned location of Mines (-9) 1748 | -10/Mines | Found a hidden stash of uninstalled traps 2029 | -10/Mines | Deemed a non-threat by the Exiles lab entrance 2029 | -10/Mines | Discovered new exit (range 5) 2041 | -10/Mines | Entered Exiles 2041 | -10/Exiles | Accompanied by 2 allies 2071 | -10/Exiles | Led the pair of lost Derelicts to a safe place 2084 | -10/Exiles | Discovered new exit (range 15) 2130 | -10/Exiles | Met 8R-AWN 2168 | -10/Exiles | Met EX-HEX 2243 | -10/Exiles | Met EX-BIN 2319 | -10/Exiles | Aligned with FarCom system 2322 | -10/Exiles | Given EX-Vault access code 2435 | -10/Exiles | Opened EX-Vault 2450 | -10/Exiles | Found Prototype Device 2450 | -10/Exiles | Identified Chronowheel 2450 | -10/Exiles | Activated Chronowheel 2450 | -10/Exiles | Spacetime reconverged on an earlier point 2455 | -10/Exiles | Found Prototype Energy Gun 2455 | -10/Exiles | Identified AWS/Thermal 2462 | -10/Exiles | Found Prototype Processor 2462 | -10/Exiles | Identified Modified TNC 2528 | -10/Exiles | Warned to stay clear of 0b10 Research branches 2585 | -10/Exiles | Met EX-DEC 2679 | -10/Exiles | Discovered new exit (range 14) 2703 | -10/Exiles | Stole two prototypes: AWS/Thermal, Modified TNC 2703 | -10/Exiles | Entered Mines 2704 | -9/Mines | Assembled infested the area 2717 | -9/Mines | Core integrity fell below 50% 2722 | -9/Mines | Core integrity fell below 20% 2782 | -9/Mines | Destroyed by as-33996 with Assembled Maul Last Messages --------------- 02723_ The unstable cave ceiling collapses. 02724_ as-79458 destroyed. 02725_ The unstable cave ceiling collapses. 02725_ as-48819 destroyed. 02726_ The unstable cave ceiling collapses. 02726_ Destroyed Flight Unit. 02733_ D-53 Grenadier destroyed. 02733_ R-06 Scavenger collects Lgt. Deuterium Engine. 02734_ The unstable cave ceiling collapses. 02734_ S-10 Pest destroyed. 02735_ The unstable cave ceiling collapses. 02736_ R-06 Scavenger collects Lgt. Assault Rifle. 02738_ Imp. Aluminum Leg destroyed. 02739_ R-06 Scavenger collects Hvy. EM Pulse Gun. 02740_ The unstable cave ceiling collapses. 02740_ D-53 Grenadier destroyed. 02751_ Med. Armor Plating destroyed. 02752_ S-10 Pest destroyed. 02766_ Lgt. Nuclear Core destroyed. 02771_ S-10 Pest destroyed. Map ----- +----------------------------------------------------+ | ?????????????????????????????????????????????????? | | ?????????????????????????????????????????????????? | | ?????????????????????????????????????????????????? | | ?????????????????????????????????????????????????? | | ?????????????????????????????????????????????????? | | ?????????????????????????????????????????????????? | | ?????????????????????????????????????????????????? | | ?????????????????????????????????????????????????? | | ?????????????????????????????????????????????????? | | ?????????????????????????????????????????????????? | | ?????????????????????????????????????????????????? | | ?????????????????????????????????????????????????? | | ?????????????????????????????????????????????????? | | ?????????????????????????????????????????????????? | | ?????????????????????????????????????????????????? | | ?????????????????????????????????????????????????? | | ?????????????????????????????????????????????????? | | ?????????????????????????????????????????????????? | | ?????????????????????????????????????????????????? | | ?????????????????????????????????????????????????? | | ?????????????????????????????????????????????????? | | ?????????????????????????????????????????????????? | | ????????????????????????###??????????????????????? | | ????????????????????????# ??????????????????????? | | ????????????????????????#a#??????????????????????? | | ????????????????????????#@#??????????????????????? | | ????????????????????????# #??????????????????????? | | ????????????????????????# #??????????????????????? | | ????????????????????????# #??????????????????????? | | ???????????????????###### #??????????????????????? | | ???????????????????# #??????????????????????? | | ???????????????????# ######??????????????????????? | | ???????????????????# #???????????????????????????? | | ???????????????????# #???????????????????????????? | | ??????????????????#" #???????????????????????????? | | ??????????????????## #???????????????????????????? | | ???????????????????" #???????????????????????????? | | ???????????????????" #???????????????????????????? | | ??????????????????##*#???????????????????????????? | | ???????????????????#%##"############?????????????? | | ???????????????#####[ "#????????????? | | ??????????????# * #????????????? | | ??????????????# ## """"[%= ##???????????? | | ??????????????# ## #####= ###?????????? | | ??????????????##### ## " #?????????? | | ??????????????????# ##### #????????? | | ??????????????????# # ### #????????? | | ??????????????????#### #??#### ##????????? | | ?????????????????????## ###???? ##?????????? | | ?????????????????????## ##???? #??????????? | +----------------------------------------------------+ Best States ------------- Heat Dissipation 25 Energy Generation 14 Energy Capacity 250 Matter Stores 300 Matter Capacity 300 Sight Range 16 Terrain Scan Density 10 Armor Coverage 225 Power Shielding 33 Utility Shielding 33 Weapon Shielding 33 Evasion (%) 55 Recoil Reduction 2 Item Schematics ----------------- None Robot Schematics ------------------ None Fabricated ------------ Nothing Alien Tech Used ----------------- None Achievements -------------- Hunted Power Corrupts Challenges ------------ None Game ------ Seed ThermoelectricDerelictSpear Manual? 0 Play Time 00:31:53 Cumulative 8.2 hours Start 2023.10.03 @ 09:17:55 End 2023.10.03 @ 09:50:22 Sessions 1 Manual Loads 0 Difficulty Rogue Special Mode None Game No. 8 Rogue 8 Adventurer 0 Explorer 0 Win Type - Total 0 Types 0/0/0/0/0/0/0/0/0 Lore% 9 Gallery% 14 Achievement% 11 Wizard Run 0 Options --------- ASCII 0 Keyboard 0 Movement Mouse Keybinds 0 Fullscreen 2 Font 18/Terminus Map View 76x50 Tactical HUD 1 Map Filters NONE Filters NONE Steam 1 RUN: cf34d316-79ce-4f66-b49b-a2c2529cf524